Cogmind - Beta 16.1 @@@ ROGUE MODE // 2026.04.21 @ 12:45:42 Player: Lyft Result: Destroyed by G-34 Mercenary with Small Laser Performance ------------- Evolutions (1) 500 Regions Visited (4) 800 Robots Destroyed (106) 530 Value Destroyed (2215) 2215 Prototype IDs (5) 100 Alien Tech Used (0) 0 Bonus (-182) -182 TOTAL SCORE: 3963 Bonus ------- High Alert Combat Kills 12 Friendly Fire -194 Cogmind --------- Core Integrity 0/400 Matter 279/300 Energy 265/265 System Corruption 7% Temperature Cool (12) Movement Treading (292) Ox2 Location -9/Storage Parts ------- > --- POWER (1) -------- Improved Ion Engine > --- PROPULSION (3) --- Light Treads Improved Treads Improved Treads > --- UTILITY (3) ------ Improved Heat Sink (fused) Cargo Storage Unit > --- WEAPON (2) ------- Spread Laser > --- INVENTORY (30) --- Improved Ion Engine Reinforced Ion Engine Light Nuclear Core Light Treads Improved Flight Unit Improved Flight Unit Improved Flight Unit Improved Flight Unit Improved Flight Unit Improved Flight Unit Improved Flight Unit High-capacity Storage Unit High-capacity Matter Pod (200) Seismic Detector Transport Network Coupler Improved Targeting Computer ECM Suite Light Armor Plating Light Armor Plating Hardened Light Armor Plating Hacking Suite Hacking Suite Beam Rifle Advanced Beam Cannon Heavy Assault Rifle Heavy Assault Rifle Heavy Assault Rifle Autogun Mini Grenade Launcher Datajack Peak State ------------ > --- POWER ------------ Improved Ion Engine > --- PROPULSION ------- Improved Treads Improved Treads Wheel > --- UTILITY ---------- Improved Heat Sink Cargo Storage Unit > --- WEAPON ----------- Advanced Beam Cannon Plasma Cutter > --- INVENTORY -------- Improved Ion Engine Reinforced Ion Engine Light Nuclear Core Light Treads Improved Flight Unit Improved Flight Unit Improved Flight Unit Improved Flight Unit Improved Flight Unit Improved Flight Unit Improved Flight Unit High-capacity Storage Unit High-capacity Matter Pod Seismic Detector Transport Network Coupler Improved Targeting Computer ECM Suite Light Armor Plating Light Armor Plating Hardened Light Armor Plating Hacking Suite Hacking Suite Beam Rifle Advanced Beam Cannon Heavy Assault Rifle Heavy Assault Rifle Heavy Assault Rifle Autogun Mini Grenade Launcher Datajack [Rating: 23] Favorites ----------- Power Improved Ion Engine Engine Improved Ion Engine Propulsion Light Treads Treads Light Treads Leg Aluminum Leg Wheel Wheel Flight Unit Improved Flight Unit Utility Cargo Storage Unit Device Improved Heat Sink Storage Cargo Storage Unit Protection Light Armor Plating Weapon Bore Cannon Energy Gun Particle Gun Energy Cannon Advanced Beam Cannon Ballistic Gun Assault Rifle Ballistic Cannon Bore Cannon Launcher Grenade Launcher Special Weapon Plasma Cutter Impact Weapon Heavy Hammer Build | -11 -10 -10 -9 -9 ------- Run | Yrd Mat Min Mat Sto Slots Evolved 2 | . . . 2 . Power . | . . . . . Propulsion 1 | . . . 1 . Utility 1 | . . . 1 . Weapon . | . . . . . Parts Attached 61 | 5 11 6 36 3 Power 8 | 1 2 1 4 . Engine 8 | 1 2 1 4 . Core . | . . . . . Reactor . | . . . . . Propulsion 21 | 3 1 2 13 2 Treads 11 | 1 1 1 6 2 Leg . | . . . . . Wheel 9 | 2 . 1 6 . Hover . | . . . . . Flight 1 | . . . 1 . Utility 10 | 1 3 . 6 . Device 3 | 1 1 . 1 . Storage 2 | . 2 . . . Processor . | . . . . . Hackware . | . . . . . Protection 5 | . . . 5 . Artifact . | . . . . . Weapon 22 | . 5 3 13 1 Energy Gun 5 | . 3 . 1 1 Energy Cannon 2 | . . . 2 . Ballistic Gun 7 | . . 1 6 . Ballistic Cannon 4 | . 1 1 2 . Launcher 1 | . . 1 . . Special Weapon 2 | . 1 . 1 . Impact Weapon 1 | . . . 1 . Slashing Weapon . | . . . . . Piercing Weapon . | . . . . . Special Melee Weapon . | . . . . . Unidentified Prototypes 3 | . . . 3 . Parts Lost 15 | . 2 4 8 1 Power 3 | . 1 1 1 . Propulsion 6 | . . 2 4 . Utility 1 | . . . 1 . Weapon 5 | . 1 1 2 1 Highest Loss Streak 4 | . 2 4 2 1 To Critical Strikes . | . . . . . Average Backups 22 | 3 12 23 27 29 Power 2 | 1 1 2 2 3 Propulsion 5 | 1 2 3 7 7 Utility 10 | . 4 12 11 11 Weapon 3 | 1 3 3 3 7 Tool/Special . | . . . . . Unused Backups 50 | 6 7 . 12 25 Power 7 | . 2 . 2 3 Propulsion 11 | 3 . . 2 6 Utility 19 | 1 3 . 4 11 Weapon 11 | 2 2 . 3 4 Tool/Special 2 | . . . 1 1 Average Slot Usage (%) 83 | . 93 79 82 88 Engine 11 | . 13 12 10 11 Treads 14 | . 14 12 14 26 Wheel 14 | . 14 12 14 6 Device 3 | . 10 . 3 11 Storage 12 | . 14 14 11 11 Protection 3 | . . . 6 . Energy Gun 4 | . 16 2 1 5 Energy Cannon 1 | . . . 1 2 Ballistic Gun 8 | . . 11 9 3 Ballistic Cannon 8 | . 7 11 6 . Peak Build Rating 23 | 7 12 15 22 23 Average Rating 14 | 6 9 13 17 21 On Entrance 11 | 6 7 11 15 20 Avg Prop Armor Cover (%) 10 | 12 11 10 10 3 Naked Turns . | . . . . . Heaviest Build 162 | 14 151 154 162 153 Greatest Support 66 | 16 20 16 40 66 Greatest Overweight (x) 47 | 1 9 47 16 15 Average Overweight (x) 7 | . 2 15 7 4 Largest Inventory Capacity 30 | 8 30 30 30 30 Average Capacity 27 | 8 17 30 30 30 Most Carried 30 | 6 20 28 30 30 Average Carried 23 | 3 12 25 28 29 Final Capacity 30 | 8 30 30 30 30 Final Carried 30 | 4 20 28 29 30 Class Distribution -------------------- 84% | Hauler-Mutant 15% | Mutant Dominant Class ---------------- Mutant | -10/Materials Hauler-Mutant | -10/Mines Hauler-Mutant | -9/Materials Hauler-Mutant | -9/Storage Resources | -11 -10 -10 -9 -9 ----------- Run | Yrd Mat Min Mat Sto Matter Collected 3129 | 292 312 533 1956 36 Remotely . | . . . . . Salvage Created 3430 | 184 624 361 2227 34 Parts 231 | 12 46 25 147 1 Haulers Intercepted 7 | . 2 . 5 . Recyclers Shooed 5 | . 1 2 2 . Parts Field Recycled . | . . . . . Retrieved Matter . | . . . . . Parts Self-Destructed . | . . . . . Prevented . | . . . . . Parts Restored . | . . . . . Kills | -11 -10 -10 -9 -9 ------- Run | Yrd Mat Min Mat Sto Combat Hostiles Destroyed 73 | . 10 21 41 1 Guns 33 | . 4 4 24 1 Cannons 25 | . 6 2 17 . AOE 15 | . . 15 . . Classes Destroyed 13 | 2 6 3 2 . Worker 11 | . 2 2 7 . Builder 6 | . . 1 5 . Tunneler 8 | 5 . 2 1 . Hauler 7 | . 2 . 5 . Recycler 9 | 1 3 2 3 . Operator 4 | . 1 . 3 . Watcher 6 | . 1 . 5 . Swarmer 7 | . 3 . 4 . Grunt 37 | . 7 2 27 1 Brawler 1 | . . . 1 . Sentry 9 | . . . 9 . Assembled 19 | . . 19 . . Guerrilla 1 | . . 1 . . Best Kill Streak 19 | 6 4 19 6 1 Combat Bots Only 19 | . 3 19 4 1 Max Kills in Single Turn 3 | 1 2 3 2 1 Gunslinging . | . . . . . Exploded 3 | . . 3 . . Melee . | . . . . . Uniques/NPCs Destroyed . | . . . . . Combat | -11 -10 -10 -9 -9 -------- Run | Yrd Mat Min Mat Sto Hostile Shots Fired 359 | . 61 30 233 35 Missed 80 | . 12 6 58 4 Hits 279 | . 49 24 175 31 Melee 13 | . . 11 2 . Projectile 266 | . 49 13 173 31 Critical Strikes 4 | . . 1 3 . Part Disruptions 1 | . . 1 . . Damage Taken 3683 | . 675 560 2086 362 Core 641 | . 131 106 300 104 Absorbed by Shields . | . . . . . Regen/Repaired (Parts) 85 | . . . 85 . Core Remaining (%) 52 | 100 . 5 . . Volleys Fired 319 | 14 63 42 189 11 Largest 2 | 2 2 2 2 1 Hottest 130 | 60 130 130 91 68 Shots Fired 546 | 28 101 64 342 11 Gun 313 | 28 54 38 186 7 Cannon 202 | . 38 18 145 1 Launcher 8 | . . 8 . . Special 23 | . 9 . 11 3 Kinetic 368 | 14 39 35 280 . Thermal 154 | 14 46 21 62 11 Explosive 8 | . . 8 . . Electromagnetic 16 | . 16 . . . Robot Hit Streak 13 | 13 7 4 10 7 Robot Miss Streak 6 | 2 6 3 6 3 Penetration Max 3 | . . . 3 . Secondary Targets 2 | . . . 2 . Max Gunslinging Chain 1 | . . . 1 . Shots Hit Robots 286 | 20 51 31 177 7 Core Hits 174 | 7 21 51 87 8 Critical Kills 11 | . . 4 7 . Critical Parts Destroyed 8 | . . 2 6 . Critical Strikes 26 | . . 6 20 . Burn 3 | . . . 3 . Destroy 19 | . . 6 13 . Blast 4 | . . . 4 . Melee Attacks 2 | . . . 2 . Impact 2 | . . . 2 . Slashing . | . . . . . Piercing . | . . . . . Sneak Attacks . | . . . . . Combat Hostiles . | . . . . . Follow-up Attacks . | . . . . . Damage Inflicted 6003 | 240 862 1368 3439 94 Guns 2619 | 240 369 282 1634 94 Cannons 2461 | . 469 201 1791 . Explosions 885 | . . 885 . . Melee . | . . . . . Ramming 14 | . . . 14 . Kinetic 3838 | 96 469 321 2952 . Thermal 1158 | 144 285 162 473 94 Explosive 885 | . . 885 . . Electromagnetic 108 | . 108 . . . Impact . | . . . . . Slashing . | . . . . . Piercing . | . . . . . Highest Corruption 7 | . 1 7 7 7 Average Corruption 6 | . 1 6 5 7 Corruption Purged . | . . . . . Corruption Blocked . | . . . . . Effects 163 | . 1 67 90 5 Message Errors 43 | . . 20 21 2 Matter Fused 39 | . . 18 19 2 Heat Flow Errors 20 | . . 7 13 . Energy Discharges 18 | . . 9 8 1 Parts Rejected 2 | . . . 2 . Parts Fused 3 | . . 1 2 . Data Loss (minor) 17 | . 1 5 11 . Data Loss (major) 6 | . . 3 3 . Misfires 5 | . . 2 3 . Alerts 5 | . . 1 4 . Weapon Failures 5 | . . 1 4 . Overload Shots . | . . . . . Overflow Damage 150 | . 119 14 17 . Projectiles 31 | . 12 2 17 . Explosions 119 | . 107 12 . . Melee . | . . . . . Knockbacks 13 | . 4 2 7 . Impact . | . . . . . Kinetic 13 | . 4 2 7 . Secondary . | . . . . . Self-Inflicted Damage 336 | . 207 122 7 . Shots 7 | . 2 5 . . Rammed 1 | . . . 1 . Targets Rammed 1 | . . . 1 . Kicked . | . . . . . Crushed . | . . . . . Highest Temperature 474 | . 276 474 250 218 Average Temperature 70 | . 66 119 54 102 Received Heat Transfer 1437 | . 123 267 849 198 Effects 5 | . . 1 3 1 Energy Bleed 1 | . . 1 . . Interference 4 | . . . 3 1 Siege Activations . | . . . . . Martial Activations . | . . . . . Shielding Activations . | . . . . . Robots Disrupted . | . . . . . Combat Hostiles . | . . . . . Robots Corrupted . | . . . . . Combat Hostiles . | . . . . . Parts Fried . | . . . . . Impact Corruptions . | . . . . . Robots Melted . | . . . . . Combat Hostiles . | . . . . . Parts Melted 2 | . 1 . 1 . Heat Transferred 2839 | 325 655 370 1369 120 Parts Sabotaged . | . . . . . Parts Stolen . | . . . . . Parts Stripped . | . . . . . Power Chain Reactions . | . . . . . Alert | -11 -10 -10 -9 -9 ------- Run | Yrd Mat Min Mat Sto Maximum Alert Level 2 | . . . 2 . Low Security (%) 75 | 100 100 100 50 100 Level 1 14 | . . . 29 . Level 2 9 | . . . 19 . Level 3 . | . . . . . Level 4 . | . . . . . Level 5 . | . . . . . High Security . | . . . . . Max Security . | . . . . . Peak Influence 452 | 20 103 46 452 191 Initial 186 | . 6 25 . 186 Average 121 | 4 25 2 229 173 Influence Increases 2150 | 30 489 126 1460 45 Destroy 0b10 Robot/C 1080 | . 200 40 820 20 Destroy 0b10 Robot/NC 255 | 30 45 35 145 . Destroy Leader 306 | . 46 10 240 10 Successful Hack 82 | . 49 7 26 . Select Force Hacks 120 | . 60 . 60 . Disable Machine 45 | . 30 . . 15 Destroy Structure 112 | . 44 34 34 . Partial Spotted 15 | . 15 . . . Lose Combat Pursuer 135 | . . . 135 . Influence Decreases 1989 | 20 434 191 1017 327 Entered New Map 301 | . 4 40 . 257 Time Decay 1278 | 20 410 132 656 60 Lost Part 129 | . 20 19 80 10 Purge Threat 281 | . . . 281 . Squads Dispatched 12 | . 3 . 9 . Investigation 6 | . 2 . 4 . Extermination . | . . . . . Reinforcement 6 | . 1 . 5 . Assault . | . . . . . Garrison . | . . . . . Intercept . | . . . . . Searches Triggered . | . . . . . Construction Impeded 2 | . . . 2 . Haulers Reinforced . | . . . . . Active Scanning Responses . | . . . . . Cargo Convoy Interrupts . | . . . . . Stealth | -11 -10 -10 -9 -9 --------- Run | Yrd Mat Min Mat Sto Distress Signals 6 | . 1 . 5 . Communications Jammed . | . . . . . Distress Signals . | . . . . . Times Spotted 101 | . 15 21 62 3 Peak Tracking Total 19 | . 3 19 4 3 Tactical Retreats 8 | . . . 8 . Traps | -11 -10 -10 -9 -9 ------- Run | Yrd Mat Min Mat Sto Traps Triggered 1 | . 1 . . . Indirectly . | . . . . . Trap Hack Attempts . | . . . . . Triggered . | . . . . . Disarmed . | . . . . . Reprogrammed . | . . . . . Reused . | . . . . . Traps Extracted . | . . . . . Installed . | . . . . . Triggered . | . . . . . Most Traps Carried 4 | . . 4 4 . Machines | -11 -10 -10 -9 -9 ---------- Run | Yrd Mat Min Mat Sto Machines Disabled 6 | . 2 . 3 1 Max in Single Turn 2 | . 2 . 1 1 Machines Repaired . | . . . . . Machines Dismantled . | . . . . . Machines Sabotaged . | . . . . . Overloaded Fab Kills . | . . . . . Hacking | -11 -10 -10 -9 -9 --------- Run | Yrd Mat Min Mat Sto Machines Accessed 22 | . 10 1 11 . Terminals 15 | . 7 1 7 . Fabricators . | . . . . . Repair Stations 2 | . 1 . 1 . Recycling Units 4 | . 2 . 2 . Scanalyzers 1 | . . . 1 . Garrison Access . | . . . . . Total Hacks 66 | . 26 1 39 . Successful 37 | . 14 1 22 . Failed 29 | . 12 . 17 . Catastrophic 5 | . 3 . 2 . Database Lockouts . | . . . . . Manual 37 | . 21 1 15 . Terminals 49 | . 20 1 28 . Fabricators . | . . . . . Repair Stations 4 | . 1 . 3 . Recycling Units 10 | . 5 . 5 . Scanalyzers 3 | . . . 3 . Garrison Access . | . . . . . Terminal Hacks 20 | . 7 1 12 . Part Schematic 2 | . 1 1 . . Robot Analysis 5 | . 4 . 1 . Prototype ID Bank 1 | . . . 1 . Terminal Index 2 | . 1 . 1 . Alert Level 3 | . . . 3 . Unreport Threat 3 | . . . 3 . Locate Traps 1 | . . . 1 . Hauler Manifests 3 | . 1 . 2 . Fabricator Hacks . | . . . . . Repair Station Hacks 2 | . . . 2 . Scan Component 1 | . . . 1 . Repair 1 | . . . 1 . Recycling Unit Hacks 3 | . 2 . 1 . Report Inventory 2 | . 1 . 1 . Retrieve Components 1 | . 1 . . . Scanalyzer 3 | . . . 3 . Retrieve Study 3 | . . . 3 . Garrison Access Hacks . | . . . . . Unauthorized Hacks 9 | . 5 . 4 . Terminals 5 | . 3 . 2 . Botnet 3 | . 2 . 1 . Operators 2 | . 1 . 1 . Fabricators . | . . . . . Repair Stations . | . . . . . Recycling Units 4 | . 2 . 2 . Tunnel 4 | . 2 . 2 . Scanalyzers . | . . . . . Garrison Access . | . . . . . Data Cores Recovered 1 | . . . 1 . Used 1 | . . . 1 . Hacking Detections 15 | . 7 . 8 . Full Trace Events 2 | . . . 2 . Feedback Events . | . . . . . Feedback Blocked . | . . . . . Robot Schematics Acquired . | . . . . . Robots Built . | . . . . . Authchips . | . . . . . Time . | . . . . . Total Robot Build Rating . | . . . . . Part Schematics Acquired 2 | . 1 1 . . Parts Built . | . . . . . Authchips . | . . . . . Time . | . . . . . Total Part Build Rating . | . . . . . Part Studies Acquired 3 | . . . 3 . Parts Repaired 1 | . . . 1 . Time 38 | . . . 38 . Parts Recycled . | . . . . . Recycled Matter . | . . . . . Retrieved Matter . | . . . . . Retrieved Components 10 | . 10 . . . Parts Scanalyzed . | . . . . . Part Schematics Acquired . | . . . . . Parts Damaged . | . . . . . Bothacking | -11 -10 -10 -9 -9 ------------ Run | Yrd Mat Min Mat Sto Used RIF Installer . | . . . . . Robots Hacked . | . . . . . Non-combat . | . . . . . Combat . | . . . . . Robot Hacks Applied . | . . . . . Relay Couplers Released . | . . . . . Fabnet Peak Effective % . | . . . . . Robots Rewired . | . . . . . Allies Hacked . | . . . . . Hacks Repelled . | . . . . . Allies | -11 -10 -10 -9 -9 -------- Run | Yrd Mat Min Mat Sto Total Allies . | . . . . . Largest Group . | . . . . . Highest-Rated Group . | . . . . . Highest-Rated Ally . | . . . . . Total Orders . | . . . . . Ally Attacks . | . . . . . Total Damage . | . . . . . Kills . | . . . . . Allies Corrupted . | . . . . . Allies Melted . | . . . . . Intel | -11 -10 -10 -9 -9 ------- Run | Yrd Mat Min Mat Sto Active Infowar (turns) 753 | 38 478 . 237 . Seismic 753 | 38 478 . 237 . Robot Analysis Total 5 | . 4 . 1 . Derelict Logs Recovered 2 | . . 2 . . Drone Launches . | . . . . . Drone Recoveries . | . . . . . Exploration | -11 -10 -10 -9 -9 ------------- Run | Yrd Mat Min Mat Sto Turns Passed 8308 | 89 1604 2384 4098 133 Spaces Moved 3041 | 39 862 699 1414 27 Core 6 | . . 6 . . Treads 538 | . 169 . 346 23 Legs . | . . . . . Wheels 2497 | 39 693 693 1068 4 Hover . | . . . . . Flight . | . . . . . Fastest Speed 95 | 95 100 235 146 280 Average Speed 232 | 98 156 320 238 294 Slowest Speed 2400 | 100 240 2400 800 400 Overloaded Moves . | . . . . . Propulsion Burnouts . | . . . . . Robots Hopped . | . . . . . Potential Cave-ins . | . . . . . Cave-ins Triggered . | . . . . . Exploration Rate (%) 57 | 4 98 90 92 5 Regions Visited 4 Branch Regions 2 Pre-discovered Areas 4 | . 2 . 2 . Known Exits Taken 1 | . . . 1 . Unknown Exits Taken 3 | 1 1 1 . . Scrap Searched 2 | . . 2 . . Spaces Dug 9 | . 7 . 2 . Terrain Destroyed 118 | . 42 46 30 . Melee 2 | . . . 2 . Projectile 50 | . 8 14 28 . AOE 66 | . 34 32 . . Terrain Rammed . | . . . . . Walls Destroyed . | . . . . . Machines Disabled . | . . . . . Actions | -11 -10 -10 -9 -9 --------- Run | Yrd Mat Min Mat Sto Total 3713 | 61 1004 780 1802 66 Wait 116 | . 11 19 66 20 Move 3037 | 38 861 698 1413 27 Hop . | . . . . . Pick Up 90 | 1 37 12 40 . Fast Attach 13 | 1 3 1 6 2 Attach 23 | 2 3 4 14 . Detach . | . . . . . Swap 47 | 2 10 3 29 3 Drop 65 | 3 16 1 42 3 Fire 319 | 14 63 42 189 11 Melee 2 | . . . 2 . Ram 1 | . . . 1 . Kick . | . . . . . Crush . | . . . . . Escape Stasis . | . . . . . Rewire . | . . . . . Trap . | . . . . . Miscellaneous . | . . . . . Route ------- -11/Scrapyard -10/Materials (discovered 5 exits: *Mat x3 / *Min / [*Sub]) -10/Mines (discovered 2 exits: *Mat x2) -9/Materials (discovered 7 exits: [*Mat x3] / [*Min x2] / *Sto x2) -9/Storage (discovered 1 exit: Rec) History --------- Turn | Location | Event 18 | -11/Scrapyard | Discovered new exit (range 3) 90 | -11/Scrapyard | Entered Materials 91 | -10/Materials | Met a group of wandering Federalists 240 | -10/Materials | Discovered new exit (range 16) 308 | -10/Materials | Build established: Mutant 336 | -10/Materials | Discovered new exit (range 16) 348 | -10/Materials | Discovered new exit (range 11) 792 | -10/Materials | Discovered new exit (range 4) 1127 | -10/Materials | Discovered new exit (range 16) 1441 | -10/Materials | Core integrity fell below 50% 1606 | -10/Materials | Build established: Hauler-Mutant 1694 | -10/Materials | Entered Mines 1719 | -10/Mines | Assembled infested the area 1722 | -10/Mines | Met a Derelict bent on vengeance 1724 | -10/Mines | Assisted by a Guerilla fighting off Assembled 1764 | -10/Mines | Core integrity fell below 20% 1794 | -10/Mines | Lost 4 parts (1p2n1w) 1798 | -10/Mines | Destroyed 19 combat bots 2543 | -10/Mines | Discovered new exit (range 9) 2598 | -10/Mines | Discovered new exit (range 16) 2882 | -10/Mines | Found a hidden stash of uninstalled traps 4078 | -10/Mines | Entered Materials 4078 | -9/Materials | Evolved 2 slots: Propulsion x1, Utility x1 4079 | -9/Materials | Identified exit to Storage 4160 | -9/Materials | Discovered exit to Storage (range 16) 5238 | -9/Materials | Discovered new exit (range 12) 5473 | -9/Materials | Discovered new exit (range 16) 5993 | -9/Materials | Discovered new exit (range 14) 6534 | -9/Materials | Core integrity fell below 50% 6784 | -9/Materials | Discovered new exit (range 11) 6836 | -9/Materials | Discovered new exit (range 16) 7837 | -9/Materials | Repaired Imp. Light Armor Plating? 8176 | -9/Materials | Entered Storage 8177 | -9/Storage | Identified exit to Recycling 8285 | -9/Storage | Core integrity fell below 20% 8309 | -9/Storage | Destroyed by G-34 Mercenary with Small Laser Last Messages --------------- 08225_ Dropped Lgt. Treads+. 08229_ Acquired 20 matter. 08232_ System corrupted: Matter fused (-6). 08232_ Acquired 6 matter. 08238_ Dropped Adv. Beam Cannon. 08239_ Acquired Unknown Energy Gun. 08239_ Identified Spread Laser. 08240_ Dropped Wheel. 08245_ Acquired Lgt. Treads+. 08248_ U LYB8CJDYMVQY53WV TXZMB BVKD 08276_ K-01 Serf collects debris. 08279_ VGFU2UWVXVWDZC1EH PF3N 08287_ G-47 Trooper destroyed. 08288_ K-01 Serf collects debris. 08290_ Overheating: System interference. 08290_ Spread Laser temporarily disabled. 08291_ K-01 Serf collects debris. 08297_ System corrupted: Matter fused (-6). 08300_ R-06 Scavenger collects Wheel. 08307_ Plasma Cutter+ destroyed. Map ----- +----------------------------------------------------+ | | | | | | | | | | | | | ?????????????????????????????????????????????? | | ?????????????????????????????????????????????? | | ?????????????????????????????????????????????? | | ?????????????????????????????????????????????? | | ?????????????????????????????????????????????? | | ?????????????????????????????????????????????? | | ??????????????####################???????????? | | ????????????? #???????????? | | ????????????? #???????????? | | ????????????? #???????????? | | ??????????????????#########+######???????????? | | ???????????????????????# #????????????? | | ???????????????????????# """" #????????????? | | ???????????????????????# r!%"? #????????????? | | ???????????????????????# "=]"??#????????????? | | ???????????????????????# " ["???????????????? | | ???????????????????????# "]]"??#????????????? | | ???????????????????????# """" #????????????? | | ???????????????????????# g #????????????? | | ???????????????????????#%@ g #????????????? | | ???????????????????????#+####+###????????????? | | ?????????????????????? ??????????????????? | | ???????????????????? ????????????????? | | ?????????????????? ??????????????? | | ?????????????????#######+#######?????????????? | | ?????????????????????????????????????????????? | | ?????????????????????????????????????????????? | | ?????????????????????????????????????????????? | | ?????????????????????????????????????????????? | | ?????????????????????????????????????????????? | | ?????????????????????????????????????????????? | | ?????????????????????????????????????????????? | | ?????????????????????????????????????????????? | | ?????????????????????????????????????????????? | | ?????????????????????????????????????????????? | | ?????????????????????????????????????????????? | | ?????????????????????????????????????????????? | | ?????????????????????????????????????????????? | | ?????????????????????????????????????????????? | | ?????????????????????????????????????????????? | | ?????????????????????????????????????????????? | | ?????????????????????????????????????????????? | | ?????????????????????????????????????????????? | | ?????????????????????????????????????????????? | +----------------------------------------------------+ Best States ------------- Heat Dissipation 42 Energy Generation 14 Energy Capacity 280 Matter Stores 300 Matter Capacity 300 Sight Range 16 Terrain Scan Density 10 Armor Coverage 150 Evasion (%) 41 Recoil Reduction 3 Item Schematics ----------------- Hcp. Storage Unit | -10/Materials | Hacked Lgt. Armor Plating | -10/Mines | Hacked Robot Schematics ------------------ None Fabricated ------------ Nothing Repaired ---------- Imp. Light Armor Plating | 52% | -9/Materials Studied --------- Lgt. Treads | -9/Materials | Hacked Datajack | -9/Materials | Hacked Plasma Cutter | -9/Materials | Hacked Alien Tech Used ----------------- None Achievements -------------- None Challenges ------------ None Game ------ Seed ServoControlDeconstructor Manual? 0 Play Time 01:43:42 Cumulative 90.6 hours Start 2026.04.15 @ 07:07:35 End 2026.04.21 @ 12:45:42 Sessions 3 Manual Loads 0 Difficulty Rogue Special Mode None Game No. 74 Rogue 64 Adventurer 9 Explorer 1 Win Type - Total 1 Types 1/0/0/0/0/0/0/0/0/0 Lore% 42 Gallery% 40 Achievement% 33 Wizard Run 0 Options --------- Layout 2 ASCII 0 Keyboard 0 Movement Mouse Keybinds 0 Fullscreen 1 Font 48/Terminus Map View 50x44 Zoom Use 0% Tactical HUD 1 Map Filters NONE Filters NONE Steam 1 RUN: f4d4343f-b505-4159-85f0-fd0f5b3875e2